fUST/lending_fUST_20250626
["ID","MTS","AMOUNT","RATE_DAILY","PERIOD"]
[367839626,1750941079200,-528.25,0.00021369,2]
[367839627,1750941079210,-630.9,0.00021369,2]
[367839628,1750941079222,-4731.44,0.00021369,2]
[367839629,1750941079231,-464.51,0.00021369,2]
[367839630,1750941079241,-719.52,0.00021369,2]
[367839631,1750941079250,-806.15,0.00021369,2]
[367839632,1750941079260,-548.98,0.00021369,2]
[367839633,1750941079270,-5800.83,0.00021369,2]
[367839634,1750941079279,-692.44,0.00021369,2]
[367839635,1750941079290,-866.92,0.00021369,2]
[367839636,1750941079300,-2909.6,0.00021369,2]
[367839637,1750941079310,-517.95,0.00021369,2]
[367839638,1750941079320,-2686.11,0.00021369,2]
[367839639,1750941079331,-1363.41,0.00021369,2]
[367839640,1750941079341,-3716.07,0.00021369,2]
[367839641,1750941079351,-1046.42,0.00021369,2]
[367839642,1750941079361,-532.34,0.00021369,2]
[367839643,1750941079371,-790.12,0.00021369,2]
[367839644,1750941079381,-1720.1,0.00021369,2]
[367839645,1750941079391,-607.72,0.00021369,2]
[367839646,1750941079400,-738.59,0.00021369,2]
[367839647,1750941079410,-683.98,0.00021369,2]
[367839648,1750941079420,-460.0,0.00021369,2]
[367839649,1750941079429,-515.47342929,0.00021369,2]
[367839650,1750941079439,-533.75,0.00021369,2]
[367839651,1750941079448,-1868.49,0.00021369,2]
[367839652,1750941079459,-1752.99,0.00021369,2]
[367839653,1750941079471,-761.74,0.00021369,2]
[367839654,1750941079481,-620.54,0.00021369,2]
[367839655,1750941079490,-570.25,0.00021369,2]
[367839656,1750941079500,-1048.74,0.00021369,2]
[367839657,1750941079510,-890.8,0.00021369,2]
[367839658,1750941079520,-2024.11,0.00021369,2]
[367839659,1750941079529,-641.16,0.00021369,2]
[367839660,1750941079539,-753.25,0.00021369,2]
[367839661,1750941079548,-560.58,0.00021369,2]
[367839662,1750941079558,-510.97,0.00021369,2]
[367839663,1750941079567,-1034.46,0.00021369,2]
[367839664,1750941079577,-685.54,0.00021369,2]
[367839665,1750941079586,-501.72,0.00021369,2]
[367839666,1750941079595,-594.59,0.00021369,2]
[367839667,1750941079605,-743.6,0.00021369,2]
[367839668,1750941079615,-2173.59,0.00021369,2]
[367839669,1750941079625,-2150.76,0.00021369,2]
[367839670,1750941079636,-603.43,0.00021369,2]
[367839671,1750941079651,-594.3,0.00021369,2]
[367839672,1750941079660,-1345.47,0.00021369,2]
[367839673,1750941079670,-721.39,0.00021369,2]
[367839674,1750941079681,-885.25,0.00021369,2]
[367839675,1750941079693,-382.28871113,0.00021369,2]
[367839676,1750941079703,-1390.16,0.00021369,2]
[367839677,1750941079712,-460.0,0.00021369,2]
[367839678,1750941079723,-2659.29,0.00021369,2]
[367839679,1750941079733,-2051.31,0.00021369,2]
[367839680,1750941079743,-581.91,0.00021369,2]
[367839681,1750941079752,-479.83,0.00021369,2]
[367839682,1750941079762,-569.65,0.00021369,2]
[367839683,1750941079772,-250.0,0.00021473,2]
[367839684,1750941079781,-500.0,0.000215,2]
[367839685,1750941079790,-1367.295302,0.00021533,4]
[367839686,1750941079800,-200.0,0.0002156,4]
[367839687,1750941079810,-2764.78833449,0.0002159,5]
[367839688,1750941079820,-5000.0,0.00021629,2]
[367839689,1750941079829,-460.0,0.00021643,2]
[367839690,1750941079838,-477.7,0.00021643,2]
[367839691,1750941079848,-460.0,0.00021643,2]
[367839692,1750941079857,-473.28,0.00021643,2]
[367839693,1750941079866,-888.46,0.00021643,2]
[367839694,1750941079875,-791.24,0.00021643,2]
[367839695,1750941079885,-460.0,0.00021643,2]
[367839696,1750941079894,-807.51,0.00021643,2]
[367839697,1750941079903,-503.24,0.00021643,2]
[367839698,1750941079913,-631.7,0.00021643,2]
[367839699,1750941079922,-460.0,0.00021643,2]
[367839700,1750941079931,-742.62,0.00021643,2]
[367839701,1750941079940,-471.26,0.00021643,2]
[367839702,1750941079950,-460.0,0.00021643,2]
[367839703,1750941079959,-460.0,0.00021643,2]
[367839704,1750941079970,-803.0,0.00021643,2]
[367839705,1750941079979,-566.19,0.00021643,2]
[367839706,1750941079989,-531.21,0.00021643,2]
[367839707,1750941080000,-586.58,0.00021643,2]
[367839708,1750941080009,-212.36,0.00021643,2]
[367839709,1750941080019,-1888.57,0.00021643,2]
[367839710,1750941080029,-1446.03,0.00021643,2]
[367839711,1750941080039,-2010.83,0.00021643,2]
[367839712,1750941080049,-460.0,0.00021643,2]
[367839713,1750941080058,-460.0,0.00021643,2]
[367839714,1750941080068,-706.02,0.00021643,2]
[367839715,1750941080078,-947.82,0.00021643,2]
[367839716,1750941080088,-686.64,0.00021643,2]
[367839717,1750941080098,-528.25,0.00021643,2]
[367839718,1750941080109,-630.9,0.00021643,2]
[367839719,1750941080120,-4731.44,0.00021643,2]
[367839720,1750941080130,-464.51,0.00021643,2]
[367839721,1750941080141,-719.52,0.00021643,2]
[367839722,1750941080153,-806.15,0.00021643,2]
[367839723,1750941080163,-548.98,0.00021643,2]
[367839724,1750941080172,-5800.83,0.00021643,2]
[367839725,1750941080182,-692.44,0.00021643,2]
[367839726,1750941080191,-866.92,0.00021643,2]
[367839727,1750941080200,-2909.6,0.00021643,2]
[367839728,1750941080210,-2686.11,0.00021643,2]
[367839729,1750941080221,-517.95,0.00021643,2]
[367839730,1750941080232,-1363.41,0.00021643,2]
[367839731,1750941080242,-3716.07,0.00021643,2]
[367839732,1750941080252,-1046.42,0.00021643,2]
[367839733,1750941080262,-532.34,0.00021643,2]
[367839734,1750941080271,-790.12,0.00021643,2]
[367839735,1750941080280,-1720.1,0.00021643,2]
[367839736,1750941080290,-607.72,0.00021643,2]
[367839737,1750941080301,-738.59,0.00021643,2]
[367839738,1750941080310,-683.98,0.00021643,2]
[367839739,1750941080320,-460.0,0.00021643,2]
[367839740,1750941080330,-533.75,0.00021643,2]
[367839741,1750941080340,-1868.49,0.00021643,2]
[367839742,1750941080350,-1752.99,0.00021643,2]
[367839743,1750941080360,-761.74,0.00021643,2]
[367839744,1750941080369,-620.54,0.00021643,2]
[367839745,1750941080379,-570.25,0.00021643,2]
[367839746,1750941080388,-1048.74,0.00021643,2]
[367839747,1750941080398,-890.8,0.00021643,2]
[367839748,1750941080408,-2024.11,0.00021643,2]
[367839749,1750941080418,-641.16,0.00021643,2]
[367839750,1750941080427,-753.25,0.00021643,2]
[367839751,1750941080437,-560.58,0.00021643,2]
[367839752,1750941080446,-510.97,0.00021643,2]
[367839753,1750941080456,-1034.46,0.00021643,2]
[367839754,1750941080467,-685.54,0.00021643,2]
[367839755,1750941080476,-501.72,0.00021643,2]
[367839756,1750941080486,-594.59,0.00021643,2]
[367839757,1750941080496,-743.6,0.00021643,2]
[367839758,1750941080506,-2173.59,0.00021643,2]
[367839759,1750941080517,-2150.76,0.00021643,2]
[367839760,1750941080526,-603.43,0.00021643,2]
[367839761,1750941080536,-594.3,0.00021643,2]
[367839762,1750941080546,-1345.47,0.00021643,2]
[367839763,1750941080556,-721.39,0.00021643,2]
[367839764,1750941080566,-885.25,0.00021643,2]
[367839765,1750941080577,-1390.16,0.00021643,2]
[367839766,1750941080586,-525.89611994,0.00021643,2]
[367839767,1750941080596,-2659.29,0.00021643,2]
[367839768,1750941080606,-2051.31,0.00021643,2]
[367839769,1750941080615,-581.91,0.00021643,2]
[367839770,1750941080625,-479.83,0.00021643,2]
[367839771,1750941080635,-569.65,0.00021643,2]
[367839772,1750941080648,-243.0,0.00021654,2]
[367839773,1750941080658,-243.0,0.00021723,2]
[367839774,1750941080668,-2500.0,0.00021737,2]
[367839775,1750941080677,-3000.0,0.00021737,2]
[367839776,1750941080687,-1414.63232303,0.00021737,2]
[367839777,1750941080697,-2500.0,0.00021737,2]
[367839778,1750941080707,-2500.0,0.00021737,2]
[367839779,1750941080716,-500.0,0.0002178,17]
[367839780,1750941080726,-3507.37,0.000218,2]
[367839781,1750941080737,-6544.25534237,0.00021807,2]
[367839782,1750941080748,-153.0,0.00021809,2]
[367839783,1750941080760,-2764.78833449,0.00021866,6]
[367839784,1750941080770,-1085.0,0.000219,2]
[367839785,1750941080781,-1085.0,0.000219,2]
[367839786,1750941080791,-1085.0,0.000219,2]
[367839787,1750941080801,-1085.0,0.000219,2]
[367839788,1750941080810,-1085.0,0.000219,2]
[367839789,1750941080820,-1085.0,0.000219,2]
[367839790,1750941080830,-1085.0,0.000219,2]
[367839791,1750941080839,-1085.0,0.000219,2]
[367839792,1750941080849,-1085.0,0.000219,2]
[367839793,1750941080955,-1085.0,0.000219,2]
[367839794,1750941080966,-1917.8121434,0.00021917,2]
[367839795,1750941080976,-460.0,0.00021917,2]
[367839796,1750941080986,-460.0,0.00021917,2]
[367839797,1750941080996,-473.28,0.00021917,2]
[367839798,1750941081005,-888.46,0.00021917,2]
[367839799,1750941081016,-791.24,0.00021917,2]
[367839800,1750941081025,-543.14861744,0.00021917,2]
[367839801,1750941081035,-807.51,0.00021917,2]
[367839802,1750941081044,-500.0,0.00021917,2]
[367839803,1750941081054,-500.0,0.00021917,2]
[367839804,1750941081064,-500.0,0.00021917,2]
[367839805,1750941081073,-500.0,0.00021917,2]
[367839806,1750941081083,-500.0,0.00021917,2]
[367839807,1750941081093,-500.0,0.00021917,2]
[367839808,1750941081102,-500.0,0.00021917,2]
[367839809,1750941081113,-500.0,0.00021917,2]
[367839810,1750941081124,-500.0,0.00021917,2]
[367839811,1750941081135,-500.0,0.00021917,2]
[367839812,1750941081145,-500.0,0.00021917,2]
[367839813,1750941081155,-500.0,0.00021917,2]
[367839814,1750941081165,-500.0,0.00021917,2]
[367839815,1750941081175,-572.79783755,0.00021917,2]
[367839816,1750941081185,-503.24,0.00021917,2]
[367839817,1750941081194,-631.7,0.00021917,2]
[367839818,1750941081204,-460.0,0.00021917,2]
[367839819,1750941081214,-742.62,0.00021917,2]
[367839820,1750941081224,-460.0,0.00021917,2]
[367839821,1750941081234,-541.7910896,0.00021917,2]
[367839822,1750941081244,-471.26,0.00021917,2]
[367839823,1750941081253,-460.0,0.00021917,2]
[367839824,1750941081263,-460.0,0.00021917,2]
[367839825,1750941081273,-803.0,0.00021917,2]
[367839826,1750941081283,-566.19,0.00021917,2]
[367839827,1750941081292,-531.21,0.00021917,2]
[367839828,1750941081302,-586.58,0.00021917,2]
[367839829,1750941081313,-1888.57,0.00021917,2]
[367839830,1750941081323,-1446.03,0.00021917,2]
[367839831,1750941081333,-2010.83,0.00021917,2]
[367839832,1750941081343,-460.0,0.00021917,2]
[367839833,1750941081353,-460.0,0.00021917,2]
[367839834,1750941081363,-706.02,0.00021917,2]
[367839835,1750941081374,-947.82,0.00021917,2]
[367839836,1750941081385,-686.64,0.00021917,2]
[367839837,1750941081396,-528.25,0.00021917,2]
[367839838,1750941081406,-630.9,0.00021917,2]
[367839839,1750941081416,-4731.44,0.00021917,2]
[367839840,1750941081425,-464.51,0.00021917,2]
[367839841,1750941081435,-719.52,0.00021917,2]
[367839842,1750941081444,-806.15,0.00021917,2]
[367839843,1750941081454,-548.98,0.00021917,2]
[367839844,1750941081464,-5800.83,0.00021917,2]
[367839845,1750941081473,-692.44,0.00021917,2]
[367839846,1750941081484,-866.92,0.00021917,2]
[367839847,1750941081494,-2909.6,0.00021917,2]
[367839848,1750941081504,-2686.11,0.00021917,2]
[367839849,1750941081514,-517.95,0.00021917,2]
[367839850,1750941081524,-12.46610754,0.00021917,2]
[367839851,1750941082841,-460.28479642,0.00016438,2]
[367839852,1750941082850,-460.0,0.00016438,2]
[367839853,1750941082860,-460.0,0.00016712,2]
[367839854,1750941082869,-282.21520358,0.00017259,2]
[367839855,1750941115195,200.342788,0.00013699,2]
[367839856,1750941297502,3000.0,0.00026006,60]
[367839857,1750941378551,238.0,0.00026006,60]
[367839859,1750941603914,15541.2465403,0.00015506,2]
[367839860,1750941740808,1000.0,0.00024,120]
[367839928,1750942233693,-3758.36435404,0.00016338,2]
[367839929,1750942233704,-160.0,0.00016399,2]
[367839930,1750942233713,-518.95,0.00016428,3]
[367839931,1750942233724,-232.56,0.00016428,3]
[367839932,1750942233734,-151.0,0.00016428,2]
[367839933,1750942233744,-151.0,0.00016428,2]
[367839934,1750942233753,-259.35971808,0.00016428,2]
[367839935,1750942233763,-300.0,0.00016435,2]
[367839936,1750942233773,-300.0,0.00016435,2]
[367839937,1750942233783,-799.0,0.00016435,2]
[367839938,1750942233793,-300.0,0.00016436,2]
[367839939,1750942233802,-1000.0,0.00016437,2]
[367839940,1750942233812,-1000.0,0.00016437,2]
[367839941,1750942233822,-1000.0,0.00016437,2]
[367839942,1750942233831,-1000.0,0.00016437,2]
[367839943,1750942233840,-1000.0,0.00016437,2]
[367839944,1750942233851,-1000.0,0.00016437,2]
[367839945,1750942233860,-1000.0,0.00016437,2]
[367839946,1750942233870,-559.34197343,0.00016437,2]
[367839947,1750942233880,-460.0,0.00016438,2]
[367839948,1750942233890,-460.0,0.00016438,2]
[367839949,1750942233900,-196.68190593,0.00016438,2]
[367839950,1750942233909,-460.0,0.00016438,2]
[367839951,1750942233918,-460.0,0.00016438,2]
[367839952,1750942233928,-348.55150417,0.00016438,2]
[367839953,1750942233937,-310.23214191,0.00016438,2]
[367839954,1750942233946,-460.0,0.00016438,2]
[367839955,1750942233955,-460.0,0.00016438,2]
[367839956,1750942233966,-335.27959433,0.00016438,2]
[367839957,1750942233978,-460.0,0.00016438,2]
[367839958,1750942233988,-460.0,0.00016438,2]
[367839959,1750942233998,-379.9585558,0.00016438,2]
[367839960,1750942234011,-460.0,0.00016438,2]
[367839961,1750942234020,-460.0,0.00016438,2]
[367839962,1750942234030,-460.0,0.00016438,2]
[367839963,1750942234039,-460.0,0.00016438,2]
[367839964,1750942234048,-460.0,0.00016438,2]
[367839965,1750942234057,-460.0,0.00016438,2]
[367839966,1750942234067,-460.57754723,0.00016438,2]
[367839967,1750942234078,-460.0,0.00016438,2]
[367839968,1750942234087,-460.0,0.00016438,2]
[367839969,1750942234096,-227.91233316,0.00016438,2]
[367839970,1750942234106,-460.0,0.00016438,2]
[367839971,1750942234117,-460.0,0.00016438,2]
[367839972,1750942234126,-460.0,0.00016438,2]
[367839973,1750942234135,-460.0,0.00016438,2]
[367839974,1750942234145,-472.29073933,0.00016438,2]
[367839975,1750942234155,-460.0,0.00016438,2]
[367839976,1750942234165,-462.90331676,0.00016438,2]
[367839977,1750942234174,-460.0,0.00016438,2]
[367839978,1750942234184,-455.70795694,0.00016438,2]
[367839979,1750942234193,-199.0722401,0.00016438,2]
[367839980,1750942234203,-460.0,0.00016438,2]
[367839981,1750942234213,-460.0,0.00016438,2]
[367839982,1750942234226,-460.0,0.00016438,2]
[367839983,1750942234235,-460.0,0.00016438,2]
[367839984,1750942234245,-464.93328592,0.00016438,2]
[367839985,1750942234254,-460.0,0.00016438,2]
[367839986,1750942234263,-460.0,0.00016438,2]
[367839987,1750942234273,-460.0,0.00016438,2]
[367839988,1750942234282,-808.53260332,0.00016438,2]
[367839989,1750942234291,-460.0,0.00016438,2]
[367839990,1750942234300,-460.0,0.00016438,2]
[367839991,1750942234310,-460.0,0.00016438,2]
[367839992,1750942234319,-460.0,0.00016438,2]
[367839993,1750942234329,-387.90137834,0.00016438,2]
[367839994,1750942234338,-460.0,0.00016438,2]
[367839995,1750942234347,-465.57392796,0.00016438,2]
[367839996,1750942234357,-300.0,0.00016438,2]
[367839997,1750942234366,-460.0,0.00016438,2]
[367839998,1750942234375,-460.0,0.00016438,2]
[367839999,1750942234384,-460.0,0.00016438,2]
[367840000,1750942234394,-460.0,0.00016438,2]
[367840001,1750942234403,-460.0,0.00016438,2]
[367840002,1750942234412,-464.90056591,0.00016438,2]
[367840003,1750942234421,-395.17628783,0.00016438,2]
[367840004,1750942234430,-460.0,0.00016438,2]
[367840005,1750942234439,-460.0,0.00016438,2]
[367840006,1750942234448,-460.0,0.00016438,2]
[367840007,1750942234458,-460.0,0.00016438,2]
[367840008,1750942234470,-460.0,0.00016438,2]
[367840009,1750942234642,-461.58226297,0.00016438,2]
[367840010,1750942234652,-461.86744919,0.00016438,2]
[367840011,1750942234661,-460.0,0.00016438,2]
[367840012,1750942234671,-460.0,0.00016438,2]
[367840013,1750942234681,-395.50610875,0.00016438,2]
[367840014,1750942234690,-460.0,0.00016438,2]
[367840015,1750942234699,-460.0,0.00016438,2]
[367840016,1750942234708,-460.0,0.00016438,2]
[367840017,1750942234718,-460.0,0.00016438,2]
[367840018,1750942234728,-460.0,0.00016438,2]
[367840019,1750942234737,-517.60663963,0.00016438,2]
[367840020,1750942234746,-180.44949262,0.00016438,2]
[367840021,1750942234756,-254.78552679,0.00016438,2]
[367840022,1750942234766,-460.0,0.00016438,2]
[367840023,1750942234776,-399.00844229,0.00016438,2]
[367840024,1750942234785,-460.0,0.00016438,2]
[367840025,1750942234794,-460.0,0.00016438,2]
[367840026,1750942234804,-465.99300752,0.00016438,2]
[367840027,1750942234813,-460.0,0.00016438,2]
[367840028,1750942234822,-460.0,0.00016438,2]
[367840029,1750942234831,-460.0,0.00016438,2]
[367840030,1750942234840,-460.0,0.00016438,2]
[367840031,1750942234849,-460.60218513,0.00016438,2]
[367840032,1750942234858,-460.0,0.00016438,2]
[367840033,1750942234868,-460.0,0.00016438,2]
[367840034,1750942234877,-460.0,0.00016438,2]
[367840035,1750942234887,-460.0,0.00016438,2]
[367840036,1750942234896,-460.0,0.00016438,2]
[367840037,1750942234905,-460.0,0.00016438,2]
[367840038,1750942234914,-460.0,0.00016438,2]
[367840039,1750942234923,-500.0,0.00016438,2]
[367840040,1750942234932,-309.61,0.00016438,2]
[367840041,1750942234941,-460.0,0.00016438,2]
[367840042,1750942234952,-460.0,0.00016438,2]
[367840043,1750942234961,-500.0,0.00016438,2]
[367840044,1750942234972,-460.0,0.00016438,2]
[367840045,1750942234981,-460.0,0.00016438,2]
[367840046,1750942234990,-460.0,0.00016438,2]
[367840047,1750942235000,-460.0,0.00016438,2]
[367840048,1750942235010,-460.89526269,0.00016438,2]
[367840049,1750942235019,-460.0,0.00016438,2]
[367840050,1750942235028,-460.0,0.00016438,2]
[367840051,1750942235039,-460.0,0.00016438,2]
[367840052,1750942235050,-460.0,0.00016438,2]
[367840053,1750942235061,-460.0,0.00016438,2]
[367840054,1750942235070,-460.0,0.00016438,2]
[367840055,1750942235080,-460.0,0.00016438,2]
[367840056,1750942235090,-460.0,0.00016438,2]
[367840057,1750942235099,-590.42897958,0.00016438,2]
[367840058,1750942235108,-406.99384314,0.00016438,2]
[367840059,1750942235118,-463.23703374,0.00016438,2]
[367840060,1750942235128,-460.33218859,0.00016438,2]
[367840061,1750942235138,-460.0,0.00016438,2]
[367840062,1750942235149,-460.0,0.00016438,2]
[367840063,1750942235158,-460.0,0.00016438,2]
[367840064,1750942235167,-460.0,0.00016438,2]
[367840065,1750942235176,-460.5968251,0.00016438,2]
[367840066,1750942235185,-460.0,0.00016438,2]
[367840067,1750942235194,-460.0,0.00016438,2]
[367840068,1750942235203,-460.0,0.00016438,2]
[367840069,1750942235213,-460.0,0.00016438,2]
[367840070,1750942235224,-460.0,0.00016438,2]
[367840071,1750942235232,-464.11161409,0.00016438,2]
[367840072,1750942235241,-539.05848828,0.00016438,2]
[367840073,1750942235250,-460.0,0.00016438,2]
[367840074,1750942235259,-460.0,0.00016438,2]
[367840075,1750942235268,-460.0,0.00016438,2]
[367840076,1750942235278,-460.0,0.00016438,2]
[367840077,1750942235287,-486.41704901,0.00016438,2]
[367840078,1750942235296,-460.0,0.00016438,2]
[367840079,1750942235305,-460.0,0.00016438,2]
[367840080,1750942235314,-460.0,0.00016438,2]
[367840081,1750942235323,-460.0,0.00016438,2]
[367840082,1750942235332,-460.0,0.00016438,2]
[367840083,1750942235343,-460.0,0.00016438,2]
[367840084,1750942235353,-460.0,0.00016438,2]
[367840085,1750942235363,-460.0,0.00016438,2]
[367840086,1750942235372,-460.0,0.00016438,2]
[367840087,1750942235382,-460.0,0.00016438,2]
[367840088,1750942235391,-460.0,0.00016438,2]
[367840089,1750942235400,-460.0,0.00016438,2]
[367840090,1750942235409,-218.80959887,0.00016438,2]
[367840091,1750942235419,-460.0,0.00016438,2]
[367840092,1750942235428,-460.0,0.00016438,2]
[367840093,1750942235438,-460.0,0.00016438,2]
[367840094,1750942235447,-460.0,0.00016438,2]
[367840095,1750942235456,-460.0,0.00016438,2]
[367840096,1750942235466,-460.0,0.00016438,2]
[367840097,1750942235475,-460.0,0.00016438,2]
[367840098,1750942235485,-454.0,0.00016438,2]
[367840099,1750942235494,-460.0,0.00016438,2]
[367840100,1750942235503,-460.0,0.00016438,2]
[367840101,1750942235512,-460.0,0.00016438,2]
[367840102,1750942235522,-460.0,0.00016438,2]
[367840103,1750942235531,-460.0,0.00016438,2]
[367840104,1750942235541,-460.0,0.00016438,2]
[367840105,1750942235550,-584.23812289,0.00016438,2]
[367840106,1750942235559,-460.0,0.00016438,2]
[367840107,1750942235569,-292.07160175,0.00016438,2]
[367840108,1750942235602,-167.92839825,0.00016438,2]
[367840109,1750942235612,-460.0,0.00016438,2]
[367840110,1750942235621,-401.75217175,0.00016438,2]
[367840111,1750942235632,-58.24782825,0.00016438,2]
[367840112,1750942235642,-460.78458219,0.00016438,2]
[367840113,1750942235652,-460.0,0.00016438,2]
[367840114,1750942235661,-67.06958956,0.00016438,2]
[367840154,1750942238308,-243.81502108,0.00016338,2]
[367840157,1750942238319,-392.93041044,0.00016438,2]
[367840159,1750942238331,-460.0,0.00016438,2]
[367840161,1750942238343,-460.0,0.00016438,2]
[367840163,1750942238353,-460.0,0.00016438,2]
[367840165,1750942238364,-460.0,0.00016438,2]
[367840167,1750942238375,-460.0,0.00016438,2]
[367840170,1750942238387,-460.0,0.00016438,2]
[367840172,1750942238399,-460.0,0.00016438,2]
[367840174,1750942238410,-460.0,0.00016438,2]
[367840176,1750942238421,-460.0,0.00016438,2]
[367840179,1750942238431,-460.0,0.00016438,2]
[367840182,1750942238441,-460.0,0.00016438,2]
[367840184,1750942238452,-500.0,0.00016438,2]
[367840186,1750942238463,-500.0,0.00016438,2]
[367840188,1750942238474,-500.0,0.00016438,2]
[367840190,1750942238484,-500.0,0.00016438,2]
[367840192,1750942238496,-500.0,0.00016438,2]
[367840195,1750942238509,-500.0,0.00016438,2]
[367840198,1750942238532,-500.0,0.00016438,2]
[367840201,1750942238548,-460.0,0.00016438,2]
[367840202,1750942238562,-460.0,0.00016438,2]
[367840203,1750942238576,-460.0,0.00016438,2]
[367840204,1750942238590,-460.0,0.00016438,2]
[367840205,1750942238603,-460.0,0.00016438,2]
[367840206,1750942238618,-460.0,0.00016438,2]
[367840207,1750942238631,-460.0,0.00016438,2]
[367840208,1750942238645,-460.0,0.00016438,2]
[367840209,1750942238657,-460.0,0.00016438,2]
[367840210,1750942238668,-460.0,0.00016438,2]
[367840211,1750942238678,-460.0,0.00016438,2]
[367840212,1750942238688,-460.0,0.00016438,2]
[367840213,1750942238699,-460.0,0.00016438,2]
[367840214,1750942238709,-460.0,0.00016438,2]
[367840215,1750942238721,-463.47715082,0.00016438,2]
[367840216,1750942238733,-460.0,0.00016438,2]
[367840217,1750942238747,-460.0,0.00016438,2]
[367840218,1750942238759,-460.0,0.00016438,2]
[367840219,1750942238771,-460.0,0.00016438,2]
[367840221,1750942238782,-460.0,0.00016438,2]
[367840223,1750942238792,-460.0,0.00016438,2]
[367840225,1750942238802,-460.0,0.00016438,2]
[367840227,1750942238813,-460.0,0.00016438,2]
[367840229,1750942238825,-460.0,0.00016438,2]
[367840231,1750942238836,-460.0,0.00016438,2]
[367840233,1750942238849,-460.0,0.00016438,2]
[367840236,1750942238860,-450.0,0.00016438,2]
[367840238,1750942238870,-462.50682402,0.00016438,2]
[367840240,1750942238880,-460.0,0.00016438,2]
[367840242,1750942238891,-460.0,0.00016438,2]
[367840244,1750942238901,-460.0,0.00016438,2]
[367840246,1750942238914,-460.0,0.00016438,2]
[367840248,1750942238925,-460.0,0.00016438,2]
[367840251,1750942238936,-460.0,0.00016438,2]
[367840253,1750942238952,-460.0,0.00016438,2]
[367840256,1750942238964,-460.0,0.00016438,2]
[367840258,1750942238975,-460.0,0.00016438,2]
[367840260,1750942238986,-460.0,0.00016438,2]
[367840262,1750942238998,-460.0,0.00016438,2]
[367840265,1750942239011,-460.0,0.00016438,2]
[367840267,1750942239022,-460.0,0.00016438,2]
[367840269,1750942239033,-460.0,0.00016438,2]
[367840271,1750942239047,-460.0,0.00016438,2]
[367840274,1750942239058,-460.0,0.00016438,2]
[367840276,1750942239069,-460.0,0.00016438,2]
[367840278,1750942239084,-460.0,0.00016438,2]
[367840280,1750942239095,-460.0,0.00016438,2]
[367840282,1750942239106,-460.0,0.00016438,2]
[367840285,1750942239121,-460.0,0.00016438,2]
[367840287,1750942239134,-460.0,0.00016438,2]
[367840290,1750942239147,-460.0,0.00016438,2]
[367840292,1750942239158,-1625.34,0.00016438,2]
[367840294,1750942239170,-460.0,0.00016438,2]
[367840297,1750942239181,-460.0,0.00016438,2]
[367840299,1750942239194,-460.0,0.00016438,2]
[367840301,1750942239205,-460.0,0.00016438,2]
[367840303,1750942239216,-460.0,0.00016438,2]
[367840306,1750942239228,-460.0,0.00016438,2]
[367840308,1750942239240,-460.0,0.00016438,2]